[Event "NJSK 2022 Meisjes C"]
[Site "Almelo, Netherlands"]
[Date "2022.05.06"]
[Round "6.2"]
[White "Fu, Janice"]
[Black "Westerhof, Fleur"]
[Result "1-0"]
[TimeControl "90min/40moves + 30min + 30sec/move"]
[WhiteElo "1344"]
[BlackElo "1509"]

1. e4 {[%clk 01:30:57]} {[%emt 00:00:02]} e5 {[%clk 01:30:52]} {[%emt
00:00:08]} 2. Nf3 {[%clk 01:31:19]} {[%emt 00:00:11]} Nc6 {[%clk 01:31:12]}
{[%emt 00:00:08]} 3. Bc4 {[%clk 01:31:37]} {[%emt 00:00:13]} Bc5 {[%clk
01:31:28]} {[%emt 00:00:13]} 4. c3 {[%clk 01:31:48]} {[%emt 00:00:18]} Nf6
{[%clk 01:31:41]} {[%emt 00:00:16]} 5. d4 {[%clk 01:32:09]} {[%emt 00:00:10]}
exd4 {[%clk 01:31:58]} {[%emt 00:00:13]} 6. e5 {[%clk 01:32:28]} {[%emt
00:00:11]} d5 {[%clk 01:32:16]} {[%emt 00:00:11]} 7. Bb5 {[%clk 01:32:42]}
{[%emt 00:00:15]} Ne4 {[%clk 01:32:20]} {[%emt 00:00:26]} 8. cxd4 {[%clk
01:32:53]} {[%emt 00:00:20]} Bb6 {[%clk 01:32:23]} {[%emt 00:00:27]} 9. h3
{[%clk 01:31:58]} {[%emt 00:01:24]} O-O {[%clk 01:30:50]} {[%emt 00:02:03]} 10.
O-O {[%clk 01:31:34]} {[%emt 00:00:54]} f6 {[%clk 01:19:54]} {[%emt 00:11:26]}
11. Nc3 {[%clk 01:28:06]} {[%emt 00:03:58]} fxe5 {[%clk 01:09:30]} {[%emt
00:10:55]} 12. Bxc6 {[%clk 01:26:43]} {[%emt 00:01:52]} bxc6 {[%clk 01:08:59]}
{[%emt 00:01:01]} 13. Nxe5 {[%clk 01:26:08]} {[%emt 00:01:05]} Qf6 {[%clk
00:59:00]} {[%emt 00:10:29]} 14. Nxe4 {[%clk 01:21:37]} {[%emt 00:05:02]} dxe4
{[%clk 00:59:11]} {[%emt 00:00:18]} 15. Qc2 {[%clk 01:20:50]} {[%emt 00:01:16]}
Kh8 {[%clk 00:52:23]} {[%emt 00:07:19]} 16. Qxe4 {[%clk 01:13:44]} {[%emt
00:07:36]} Bf5 {[%clk 00:49:24]} {[%emt 00:03:29]} 17. Qxc6 {[%clk 01:12:39]}
{[%emt 00:01:34]} Bxd4 {[%clk 00:49:06]} {[%emt 00:00:49]} 18. Qxf6 {[%clk
01:12:11]} {[%emt 00:00:58]} Rxf6 {[%clk 00:49:01]} {[%emt 00:00:35]} 19. Nf3
{[%clk 01:11:38]} {[%emt 00:01:03]} Bb6 {[%clk 00:48:37]} {[%emt 00:00:55]} 20.
Bf4 {[%clk 01:10:06]} {[%emt 00:02:01]} Bxh3 {[%clk 00:46:49]} {[%emt
00:02:19]} 21. Bg3 {[%clk 01:04:07]} {[%emt 00:06:29]} Rg6 {[%clk 00:40:46]}
{[%emt 00:06:32]} 22. Kh1 {[%clk 01:00:22]} {[%emt 00:04:15]} Bf5 {[%clk
00:36:16]} {[%emt 00:04:58]} 23. Rac1 {[%clk 00:58:04]} {[%emt 00:02:49]} Rc8
{[%clk 00:33:05]} {[%emt 00:03:42]} 24. Ne5 {[%clk 00:56:55]} {[%emt 00:01:39]}
Re6 {[%clk 00:31:24]} {[%emt 00:02:11]} 25. Rfd1 {[%clk 00:52:22]} {[%emt
00:05:03]} Kg8 {[%clk 00:30:19]} {[%emt 00:01:34]} 26. Nd7 {[%clk 00:49:02]}
{[%emt 00:03:51]} Ree8 {[%clk 00:24:03]} {[%emt 00:06:45]} 27. b4 {[%clk
00:43:26]} {[%emt 00:06:07]} Red8 {[%clk 00:19:38]} {[%emt 00:04:56]} 28. Nxb6
{[%clk 00:41:33]} {[%emt 00:02:21]} cxb6 {[%clk 00:18:20]} {[%emt 00:01:49]} 29.
Rxd8+ {[%clk 00:41:05]} {[%emt 00:00:58]} Rxd8 {[%clk 00:18:38]} {[%emt
00:00:12]} 30. Rc7 {[%clk 00:41:02]} {[%emt 00:00:33]} Ra8 {[%clk 00:16:47]}
{[%emt 00:02:22]} 31. Be5 {[%clk 00:39:57]} {[%emt 00:01:34]} a5 {[%clk
00:14:13]} {[%emt 00:03:05]} 32. Rxg7+ {[%clk 00:38:47]} {[%emt 00:01:38]} Kf8
{[%clk 00:14:35]} {[%emt 00:00:09]} 33. Rb7 {[%clk 00:37:32]} {[%emt 00:01:46]}
Ra6 {[%clk 00:13:41]} {[%emt 00:01:24]} 34. b5 {[%clk 00:36:59]} {[%emt
00:01:03]} Ra8 {[%clk 00:13:46]} {[%emt 00:00:25]} 35. Rxb6 {[%clk 00:37:12]}
{[%emt 00:00:15]} Ke7 {[%clk 00:13:45]} {[%emt 00:00:32]} 36. f3 {[%clk
00:36:53]} {[%emt 00:00:49]} Kd7 {[%clk 00:10:59]} {[%emt 00:03:16]} 37. Rd6+
{[%clk 00:35:27]} {[%emt 00:01:56]} Ke7 {[%clk 00:11:08]} {[%emt 00:00:21]} 38.
b6 {[%clk 00:34:32]} {[%emt 00:01:26]} Rb8 {[%clk 00:10:03]} {[%emt 00:01:34]}
39. Rf6 {[%clk 00:34:10]} {[%emt 00:00:52]} Bc8 {[%clk 00:10:06]} {[%emt
00:00:27]} 40. Rh6 {[%clk 00:34:08]} {[%emt 00:00:32]} Rb7 {[%clk 00:10:02]}
{[%emt 00:00:34]} 41. f4 {[%clk 00:33:27]} {[%emt 00:01:11]} Bf5 {[%clk
00:09:52]} {[%emt 00:00:40]} 42. a4 {[%clk 00:32:25]} {[%emt 00:01:31]} Bg6
{[%clk 00:09:59]} {[%emt 00:00:24]} 43. Bc7 {[%clk 00:31:40]} {[%emt 00:01:14]}
Ke6 {[%clk 00:08:52]} {[%emt 00:01:38]} 44. Rh3 {[%clk 00:31:39]} {[%emt
00:00:29]} Kf5 {[%clk 00:09:10]} {[%emt 00:00:14]} 45. Re3 {[%clk 00:31:25]}
{[%emt 00:00:40]} Kf6 {[%clk 00:07:36]} {[%emt 00:02:07]} 46. Re5 {[%emt
00:01:51]} 1-0

[Event "NJSK 2022 Meisjes C"]
[Site "Almelo, Netherlands"]
[Date "2022.05.06"]
[Round "6.3"]
[White "Feng, Elysia"]
[Black "Tunyluhulima, Serana"]
[Result "1-0"]
[TimeControl "90min/40moves + 30min + 30sec/move"]
[WhiteElo "1641"]
[BlackElo "1617"]

1. e4 {[%clk 01:30:58]} {[%emt 00:00:02]} e5 {[%clk 01:30:52]} {[%emt
00:00:09]} 2. Nf3 {[%clk 01:31:26]} {[%emt 00:00:01]} Nc6 {[%clk 01:31:02]}
{[%emt 00:00:21]} 3. Bb5 {[%clk 01:31:51]} {[%emt 00:00:05]} Nf6 {[%clk
01:31:18]} {[%emt 00:00:14]} 4. O-O {[%clk 01:32:10]} {[%emt 00:00:11]} Ng4
{[%clk 01:31:20]} {[%emt 00:00:27]} 5. h3 {[%clk 01:32:13]} {[%emt 00:00:28]}
h5 {[%clk 01:31:22]} {[%emt 00:00:27]} 6. d3 {[%clk 01:27:37]} {[%emt
00:05:07]} a6 {[%clk 01:28:45]} {[%emt 00:03:08]} 7. Bc4 {[%clk 01:23:48]}
{[%emt 00:04:18]} Bc5 {[%clk 01:26:18]} {[%emt 00:02:57]} 8. hxg4 {[%clk
01:22:00]} {[%emt 00:02:18]} hxg4 {[%clk 01:25:55]} {[%emt 00:00:53]} 9. Ng5
{[%clk 01:22:21]} {[%emt 00:00:09]} d5 {[%clk 01:18:42]} {[%emt 00:07:43]} 10.
Bxd5 {[%clk 01:20:53]} {[%emt 00:01:57]} O-O {[%clk 01:16:33]} {[%emt
00:02:39]} 11. g3 {[%clk 01:15:29]} {[%emt 00:05:55]} Nd4 {[%clk 01:14:22]}
{[%emt 00:02:41]} 12. c3 {[%clk 01:12:36]} {[%emt 00:03:23]} Nf3+ {[%clk
01:14:10]} {[%emt 00:00:41]} 13. Nxf3 {[%clk 01:12:42]} {[%emt 00:00:24]} gxf3
{[%clk 01:14:24]} {[%emt 00:00:17]} 14. Qxf3 {[%clk 01:12:45]} {[%emt
00:00:26]} Qd6 {[%clk 01:09:22]} {[%emt 00:05:32]} 15. Be3 {[%clk 01:10:50]}
{[%emt 00:02:26]} Bxe3 {[%clk 01:03:12]} {[%emt 00:06:40]} 16. fxe3 {[%clk
01:10:32]} {[%emt 00:00:48]} Qg6 {[%clk 01:03:15]} {[%emt 00:00:27]} 17. Nd2
{[%clk 01:04:28]} {[%emt 00:06:33]} Bg4 {[%clk 01:00:31]} {[%emt 00:03:15]} 18.
Qg2 {[%clk 01:01:45]} {[%emt 00:03:13]} Rad8 {[%clk 00:57:33]} {[%emt
00:03:28]} 19. Nc4 {[%clk 00:54:50]} {[%emt 00:07:25]} Qh5 {[%clk 00:54:53]}
{[%emt 00:03:10]} 20. Qf2 {[%clk 00:47:55]} {[%emt 00:07:23]} c6 {[%clk
00:52:03]} {[%emt 00:03:20]} 21. Bxf7+ {[%clk 00:47:35]} {[%emt 00:00:50]} Rxf7
{[%clk 00:52:13]} {[%emt 00:00:21]} 22. Qxf7+ {[%clk 00:47:59]} {[%emt
00:00:06]} Qxf7 {[%clk 00:52:33]} {[%emt 00:00:10]} 23. Rxf7 {[%clk 00:48:24]}
{[%emt 00:00:05]} Kxf7 {[%clk 00:43:30]} {[%emt 00:09:33]} 24. Nxe5+ {[%clk
00:48:10]} {[%emt 00:00:44]} Kg8 {[%clk 00:43:40]} {[%emt 00:00:20]} 25. Nxg4
{[%clk 00:48:31]} {[%emt 00:00:10]} Rxd3 {[%clk 00:44:02]} {[%emt 00:00:08]} 26.
Kf1 {[%clk 00:48:48]} {[%emt 00:00:13]} Rd8 {[%clk 00:42:49]} {[%emt 00:01:43]}
27. Ke2 {[%clk 00:48:52]} {[%emt 00:00:27]} Re8 {[%clk 00:42:51]} {[%emt
00:00:27]} 28. e5 {[%clk 00:48:14]} {[%emt 00:01:08]} Re6 {[%clk 00:42:21]}
{[%emt 00:01:00]} 29. Rd1 {[%clk 00:47:56]} {[%emt 00:00:48]} Kf8 {[%clk
00:40:22]} {[%emt 00:02:29]} 30. Rd6 {[%clk 00:47:21]} {[%emt 00:01:05]} Re7
{[%clk 00:39:25]} {[%emt 00:01:26]} 31. Kd3 {[%clk 00:45:44]} {[%emt 00:02:08]}
1-0

[Event "NJSK 2022 Meisjes C"]
[Site "Almelo, Netherlands"]
[Date "2022.05.06"]
[Round "6.4"]
[White "Knobbe, Elise"]
[Black "Gergin, Isafara"]
[Result "1-0"]
[TimeControl "90min/40moves + 30min + 30sec/move"]
[WhiteElo "1553"]
[BlackElo "1723"]

1. c4 {[%clk 01:30:57]} {[%emt 00:00:03]} Nf6 {[%clk 01:30:57]} {[%emt
00:00:04]} 2. Nc3 {[%clk 01:31:16]} {[%emt 00:00:14]} g6 {[%clk 01:31:14]}
{[%emt 00:00:09]} 3. g3 {[%clk 01:31:33]} {[%emt 00:00:14]} Bg7 {[%clk
01:31:27]} {[%emt 00:00:17]} 4. Bg2 {[%clk 01:31:56]} {[%emt 00:00:07]} O-O
{[%clk 01:31:38]} {[%emt 00:00:19]} 5. e4 {[%clk 01:32:09]} {[%emt 00:00:17]}
d6 {[%clk 01:31:47]} {[%emt 00:00:22]} 6. Nge2 {[%clk 01:32:08]} {[%emt
00:00:29]} Nbd7 {[%clk 01:30:36]} {[%emt 00:01:42]} 7. O-O {[%clk 01:30:50]}
{[%emt 00:01:47]} e5 {[%clk 01:28:09]} {[%emt 00:02:57]} 8. d3 {[%clk
01:30:18]} {[%emt 00:01:02]} Ne8 {[%clk 01:18:35]} {[%emt 00:10:04]} 9. Be3
{[%clk 01:26:50]} {[%emt 00:03:58]} f5 {[%clk 01:10:45]} {[%emt 00:08:21]} 10.
exf5 {[%clk 01:26:31]} {[%emt 00:00:49]} gxf5 {[%clk 01:09:48]} {[%emt
00:01:27]} 11. f4 {[%clk 01:26:04]} {[%emt 00:00:57]} c6 {[%clk 01:05:42]}
{[%emt 00:04:36]} 12. Re1 {[%clk 01:19:38]} {[%emt 00:06:55]} Nef6 {[%clk
00:59:18]} {[%emt 00:06:54]} 13. h3 {[%clk 01:16:49]} {[%emt 00:03:19]} Qe8
{[%clk 00:54:49]} {[%emt 00:04:59]} 14. Kh2 {[%clk 01:12:58]} {[%emt 00:04:21]}
Qg6 {[%clk 00:51:05]} {[%emt 00:04:14]} 15. Ng1 {[%clk 01:10:06]} {[%emt
00:03:22]} Kh8 {[%clk 00:40:57]} {[%emt 00:10:39]} 16. Qf3 {[%clk 01:05:07]}
{[%emt 00:05:29]} Rg8 {[%clk 00:37:23]} {[%emt 00:04:04]} 17. Qf2 {[%clk
01:03:04]} {[%emt 00:02:32]} Bh6 {[%clk 00:28:55]} {[%emt 00:08:58]} 18. Nge2
{[%clk 01:00:15]} {[%emt 00:03:19]} Nh5 {[%clk 00:25:49]} {[%emt 00:03:36]} 19.
Rg1 {[%clk 00:59:05]} {[%emt 00:01:40]} exf4 {[%clk 00:16:48]} {[%emt
00:09:32]} 20. Bxf4 {[%clk 00:56:09]} {[%emt 00:03:25]} Nxf4 {[%emt 00:02:21]}
21. Nxf4 {[%clk 00:55:36]} {[%emt 00:00:01]} Bxf4 {[%clk 00:16:01]} {[%emt
00:00:28]} 22. gxf4 {[%clk 00:54:37]} {[%emt 00:01:29]} Qf6 {[%clk 00:14:26]}
{[%emt 00:02:06]} 23. d4 {[%clk 00:53:33]} {[%emt 00:01:34]} Nb6 {[%clk
00:12:22]} {[%emt 00:02:34]} 24. b3 {[%clk 00:52:54]} {[%emt 00:01:08]} Be6
{[%clk 00:10:53]} {[%emt 00:01:59]} 25. Qd2 {[%clk 00:52:14]} {[%emt 00:01:08]}
d5 {[%clk 00:09:15]} {[%emt 00:02:10]} 26. cxd5 {[%clk 00:50:56]} {[%emt
00:01:48]} Bxd5 {[%clk 00:08:52]} {[%emt 00:00:54]} 27. Nxd5 {[%clk 00:51:09]}
{[%emt 00:00:16]} Nxd5 {[%clk 00:08:10]} {[%emt 00:01:13]} 28. Bxd5 {[%clk
00:51:20]} {[%emt 00:00:18]} cxd5 {[%clk 00:08:31]} {[%emt 00:00:10]} 29. Rxg8+
{[%clk 00:50:54]} {[%emt 00:00:56]} Rxg8 {[%clk 00:08:56]} {[%emt 00:00:04]} 30.
Re1 {[%clk 00:50:42]} {[%emt 00:00:43]} Qg6 {[%clk 00:07:37]} {[%emt 00:01:50]}
31. Qf2 {[%clk 00:49:58]} {[%emt 00:01:12]} Qd6 {[%clk 00:05:46]} {[%emt
00:02:22]} 32. Re5 {[%clk 00:48:19]} {[%emt 00:02:08]} Rf8 {[%clk 00:03:56]}
{[%emt 00:02:21]} 33. Qg2 {[%clk 00:46:26]} {[%emt 00:02:23]} Qc6 {[%clk
00:02:13]} {[%emt 00:02:14]} 34. Qe2 {[%clk 00:43:20]} {[%emt 00:03:35]} Qd7
{[%clk 00:01:05]} {[%emt 00:01:38]} 35. Re7 {[%clk 00:42:41]} {[%emt 00:01:09]}
Qc6 {[%clk 00:01:08]} {[%emt 00:00:28]} 36. Qe5+ {[%clk 00:42:48]} {[%emt
00:00:22]} Qf6 {[%clk 00:01:04]} {[%emt 00:00:34]} 37. Qxf6+ {[%clk 00:42:37]}
{[%emt 00:00:41]} Rxf6 {[%clk 00:01:30]} {[%emt 00:00:04]} 38. Rxb7 {[%clk
00:42:21]} {[%emt 00:00:46]} Ra6 {[%clk 00:01:45]} {[%emt 00:00:15]} 39. a4
{[%clk 00:42:29]} {[%emt 00:00:24]} Rb6 {[%clk 00:01:42]} {[%emt 00:00:33]} 40.
Rxb6 {[%clk 00:42:39]} {[%emt 00:00:20]} axb6 {[%clk 00:02:09]} {[%emt
00:00:03]} 41. b4 {[%clk 00:42:54]} {[%emt 00:00:15]} Kg8 {[%clk 00:02:24]}
{[%emt 00:00:15]} 42. a5 {[%clk 00:43:11]} {[%emt 00:00:12]} Kf7 {[%clk
00:01:53]} {[%emt 00:01:01]} 43. a6 {[%clk 00:43:28]} {[%emt 00:00:14]} Ke7
{[%clk 00:02:10]} {[%emt 00:00:12]} 44. a7 {[%clk 00:43:49]} {[%emt 00:00:09]}
Kd7 {[%clk 00:01:59]} {[%emt 00:00:42]} 45. a8=Q {[%clk 00:43:35]} {[%emt
00:00:14]} 1-0

[Event "NJSK 2022 Meisjes C"]
[Site "Almelo, Netherlands"]
[Date "2022.05.06"]
[Round "6.5"]
[White "Liu, Chia-Yun"]
[Black "Kulikova, Polina"]
[Result "1/2-1/2"]
[TimeControl "90min/40moves + 30min + 30sec/move"]
[WhiteElo "1148"]
[BlackElo "1117"]

1. e4 {[%clk 01:30:58]} {[%emt 00:00:02]} c6 {[%clk 01:30:59]} {[%emt
00:00:02]} 2. d4 {[%clk 01:31:21]} {[%emt 00:00:07]} d5 {[%clk 01:31:20]}
{[%emt 00:00:11]} 3. Nc3 {[%clk 01:31:32]} {[%emt 00:00:16]} dxe4 {[%clk
01:31:43]} {[%emt 00:00:07]} 4. Nxe4 {[%clk 01:31:57]} {[%emt 00:00:05]} Nf6
{[%clk 01:31:54]} {[%emt 00:00:19]} 5. Nxf6+ {[%clk 01:31:57]} {[%emt
00:00:29]} exf6 {[%clk 01:32:16]} {[%emt 00:00:09]} 6. c3 {[%clk 01:31:29]}
{[%emt 00:00:59]} Bd6 {[%clk 01:32:36]} {[%emt 00:00:11]} 7. Bd3 {[%clk
01:31:49]} {[%emt 00:00:09]} O-O {[%clk 01:31:56]} {[%emt 00:01:09]} 8. Ne2
{[%clk 01:32:04]} {[%emt 00:00:15]} Qc7 {[%clk 01:31:53]} {[%emt 00:00:33]} 9.
Qc2 {[%clk 01:30:17]} {[%emt 00:02:17]} Kh8 {[%clk 01:27:07]} {[%emt 00:05:16]}
10. Be3 {[%clk 01:26:39]} {[%emt 00:04:08]} h6 {[%clk 01:25:10]} {[%emt
00:02:28]} 11. Qd2 {[%clk 01:22:18]} {[%emt 00:04:51]} h5 {[%clk 01:14:21]}
{[%emt 00:11:18]} 12. O-O-O {[%clk 01:18:50]} {[%emt 00:03:58]} g6 {[%clk
01:05:50]} {[%emt 00:09:01]} 13. h4 {[%clk 01:13:14]} {[%emt 00:06:07]} Be6
{[%clk 01:01:06]} {[%emt 00:05:14]} 14. c4 {[%clk 01:08:59]} {[%emt 00:04:45]}
Qc8 {[%clk 00:59:20]} {[%emt 00:02:16]} 15. Kb1 {[%clk 01:04:51]} {[%emt
00:04:37]} Bf5 {[%clk 00:59:01]} {[%emt 00:00:49]} 16. Bf4 {[%clk 01:00:32]}
{[%emt 00:04:49]} Bxd3+ {[%clk 00:55:18]} {[%emt 00:04:12]} 17. Qxd3 {[%clk
01:00:35]} {[%emt 00:00:28]} Qd7 {[%clk 00:49:37]} {[%emt 00:06:07]} 18. Bxd6
{[%clk 00:59:30]} {[%emt 00:01:39]} Qxd6 {[%clk 00:49:33]} {[%emt 00:00:33]} 19.
f3 {[%clk 00:57:53]} {[%emt 00:02:08]} Qd7 {[%clk 00:43:37]} {[%emt 00:06:26]}
20. Rdg1 {[%clk 00:49:47]} {[%emt 00:08:36]} f5 {[%clk 00:40:50]} {[%emt
00:03:16]} 21. Qd2 {[%clk 00:43:56]} {[%emt 00:06:23]} Kg7 {[%clk 00:39:35]}
{[%emt 00:01:45]} 22. Qg5 {[%clk 00:41:28]} {[%emt 00:02:57]} Qe6 {[%clk
00:37:26]} {[%emt 00:02:39]} 23. Ng3 {[%clk 00:37:33]} {[%emt 00:04:27]} Kh7
{[%clk 00:30:50]} {[%emt 00:07:05]} 24. c5 {[%clk 00:32:08]} {[%emt 00:05:55]}
Na6 {[%clk 00:21:12]} {[%emt 00:10:08]} 25. a3 {[%clk 00:30:07]} {[%emt
00:02:32]} Rad8 {[%clk 00:20:07]} {[%emt 00:01:34]} 26. Rd1 {[%clk 00:24:22]}
{[%emt 00:06:15]} Rd5 {[%clk 00:19:44]} {[%emt 00:00:52]} 27. Rhe1 {[%clk
00:21:48]} {[%emt 00:03:05]} Qd7 {[%clk 00:18:24]} {[%emt 00:01:25]} 28. Qf6
{[%clk 00:18:06]} {[%emt 00:04:36]} Nxc5 {[%clk 00:16:08]} {[%emt 00:02:46]} 29.
Re7 {[%clk 00:17:19]} {[%emt 00:01:18]} Qd8 {[%clk 00:15:43]} {[%emt 00:00:55]}
30. Rxf7+ {[%clk 00:17:02]} {[%emt 00:00:47]} Rxf7 {[%clk 00:15:08]} {[%emt
00:01:04]} 31. Qxf7+ {[%clk 00:17:07]} {[%emt 00:00:26]} Kh6 {[%clk 00:14:03]}
{[%emt 00:01:35]} 32. Nxh5 {[%clk 00:12:54]} {[%emt 00:04:42]} gxh5 {[%clk
00:14:13]} {[%emt 00:00:20]} 33. Re1 {[%clk 00:12:23]} {[%emt 00:01:02]} Rxd4
{[%clk 00:08:14]} {[%emt 00:06:29]} 34. Qxf5 {[%clk 00:10:20]} {[%emt
00:02:33]} Rd1+ {[%clk 00:08:14]} {[%emt 00:00:30]} 35. Rxd1 {[%clk 00:10:40]}
{[%emt 00:00:10]} Qxd1+ {[%clk 00:08:41]} {[%emt 00:00:03]} 36. Ka2 {[%clk
00:11:09]} {[%emt 00:00:02]} Qd5+ {[%clk 00:08:23]} {[%emt 00:00:47]} 37. Qxd5
{[%clk 00:11:28]} {[%emt 00:00:11]} cxd5 {[%clk 00:08:51]} {[%emt 00:00:02]} 38.
g4 {[%clk 00:10:36]} {[%emt 00:01:22]} hxg4 {[%clk 00:08:24]} {[%emt 00:00:57]}
39. fxg4 {[%clk 00:11:01]} {[%emt 00:00:04]} Ne4 {[%clk 00:06:46]} {[%emt
00:02:07]} 40. Kb3 {[%clk 00:10:24]} {[%emt 00:01:07]} Nf2 {[%clk 00:06:40]}
{[%emt 00:00:37]} 41. g5+ {[%clk 00:10:40]} {[%emt 00:00:13]} Kh5 {[%clk
00:06:31]} {[%emt 00:00:40]} 42. Kc3 {[%clk 00:10:39]} {[%emt 00:00:31]} Nd1+
{[%clk 00:04:05]} {[%emt 00:02:56]} 43. Kd4 {[%clk 00:10:35]} {[%emt 00:00:34]}
Nxb2 {[%clk 00:04:31]} {[%emt 00:00:04]} 44. Kxd5 {[%clk 00:11:04]} {[%emt
00:00:01]} Nd3 {[%clk 00:04:34]} {[%emt 00:00:28]} 45. Kd6 {[%clk 00:09:59]}
{[%emt 00:01:34]} a6 {[%clk 00:03:53]} {[%emt 00:01:12]} 46. Kc7 {[%clk
00:10:18]} {[%emt 00:00:10]} Kxh4 {[%clk 00:02:32]} {[%emt 00:01:51]} 47. g6
{[%clk 00:10:22]} {[%emt 00:00:26]} Nc5 {[%clk 00:02:44]} {[%emt 00:00:18]} 48.
g7 {[%clk 00:10:12]} {[%emt 00:00:40]} Ne6+ {[%clk 00:02:34]} {[%emt 00:00:40]}
49. Kxb7 {[%clk 00:10:33]} {[%emt 00:00:09]} Nxg7 {[%clk 00:02:30]} {[%emt
00:00:35]} 50. Kxa6 {[%clk 00:10:56]} {[%emt 00:00:06]} Ne6 {[%clk 00:02:51]}
{[%emt 00:00:09]} 51. Kb6 {[%clk 00:10:40]} {[%emt 00:00:46]} Nd4 {[%clk
00:02:45]} {[%emt 00:00:37]} 52. a4 {[%clk 00:10:50]} {[%emt 00:00:19]} Nb3
{[%clk 00:02:59]} {[%emt 00:00:16]} 53. Kb5 {[%clk 00:11:14]} {[%emt 00:00:07]}
Kg5 {[%clk 00:03:22]} {[%emt 00:00:06]} 54. Kb4 {[%clk 00:11:32]} {[%emt
00:00:12]} Nd4 {[%clk 00:03:07]} {[%emt 00:00:45]} 55. Kc4 {[%clk 00:11:26]}
{[%emt 00:00:36]} Nc6 {[%clk 00:03:11]} {[%emt 00:00:26]} 56. Kc5 {[%clk
00:11:32]} {[%emt 00:00:25]} Na7 {[%clk 00:03:17]} {[%emt 00:00:23]} 57. a5
{[%clk 00:11:30]} {[%emt 00:00:32]} Kf6 {[%clk 00:03:21]} {[%emt 00:00:26]} 58.
Kb6 {[%clk 00:11:49]} {[%emt 00:00:11]} Nc8+ {[%clk 00:03:11]} {[%emt
00:00:40]} 59. Kc7 {[%clk 00:11:59]} {[%emt 00:00:20]} Na7 {[%clk 00:03:16]}
{[%emt 00:00:25]} 60. Kb7 {[%clk 00:12:12]} {[%emt 00:00:17]} Nb5 {[%clk
00:03:16]} {[%emt 00:00:30]} 61. a6 {[%clk 00:12:23]} {[%emt 00:00:19]} Ke7
{[%clk 00:02:59]} {[%emt 00:00:47]} 62. Kb6 {[%clk 00:12:37]} {[%emt 00:00:16]}
Nd6 {[%clk 00:03:02]} {[%emt 00:00:27]} 63. Kc6 {[%clk 00:10:25]} {[%emt
00:02:42]} Nc8 {[%clk 00:03:12]} {[%emt 00:00:19]} 64. Kc7 {[%clk 00:10:30]}
{[%emt 00:00:26]} Na7 {[%clk 00:03:37]} {[%emt 00:00:05]} 65. Kb7 {[%clk
00:10:38]} {[%emt 00:00:22]} Nb5 {[%clk 00:03:54]} {[%emt 00:00:13]} 1/2-1/2

[Event "NJSK 2022 Meisjes C"]
[Site "Almelo, Netherlands"]
[Date "2022.05.06"]
[Round "6.6"]
[White "Roebers, Bregje"]
[Black "Van Apeldoorn, Vera"]
[Result "0-1"]
[TimeControl "90min/40moves + 30min + 30sec/move"]
[WhiteElo "1214"]
[BlackElo "1022"]

1. e4 {[%clk 01:30:58]} {[%emt 00:00:02]} e5 {[%clk 01:30:54]} {[%emt
00:00:07]} 2. Nf3 {[%clk 01:31:23]} {[%emt 00:00:08]} Nc6 {[%clk 01:31:12]}
{[%emt 00:00:09]} 3. d4 {[%clk 01:31:48]} {[%emt 00:00:05]} exd4 {[%clk
01:31:24]} {[%emt 00:00:17]} 4. Nxd4 {[%clk 01:32:12]} {[%emt 00:00:06]} Nf6
{[%clk 01:31:23]} {[%emt 00:00:31]} 5. Nxc6 {[%clk 01:31:49]} {[%emt 00:00:54]}
bxc6 {[%clk 01:31:14]} {[%emt 00:00:38]} 6. Bd3 {[%clk 01:31:49]} {[%emt
00:00:30]} Bc5 {[%clk 01:29:34]} {[%emt 00:02:10]} 7. Bg5 {[%clk 01:31:33]}
{[%emt 00:00:46]} h6 {[%clk 01:29:42]} {[%emt 00:00:23]} 8. Bh4 {[%clk
01:31:50]} {[%emt 00:00:13]} Be7 {[%clk 01:29:38]} {[%emt 00:00:33]} 9. Nd2
{[%clk 01:31:20]} {[%emt 00:01:01]} O-O {[%clk 01:29:30]} {[%emt 00:00:38]} 10.
O-O {[%clk 01:31:35]} {[%emt 00:00:14]} d5 {[%clk 01:27:58]} {[%emt 00:02:03]}
11. exd5 {[%clk 01:30:29]} {[%emt 00:01:36]} cxd5 {[%clk 01:28:07]} {[%emt
00:00:21]} 12. Nb3 {[%clk 01:29:56]} {[%emt 00:01:03]} Qd6 {[%clk 01:26:48]}
{[%emt 00:01:48]} 13. Bg3 {[%clk 01:28:53]} {[%emt 00:01:33]} Qd8 {[%clk
01:24:37]} {[%emt 00:02:41]} 14. Re1 {[%clk 01:26:45]} {[%emt 00:02:38]} Be6
{[%clk 01:23:02]} {[%emt 00:02:05]} 15. Nd4 {[%clk 01:24:38]} {[%emt 00:02:38]}
Bd7 {[%clk 01:22:23]} {[%emt 00:01:08]} 16. Bxc7 {[%clk 01:19:26]} {[%emt
00:05:43]} Qxc7 {[%clk 01:21:33]} {[%emt 00:01:19]} 17. Rxe7 {[%clk 01:19:20]}
{[%emt 00:00:36]} Qc5 {[%clk 01:21:33]} {[%emt 00:00:31]} 18. Re1 {[%emt
00:03:16]} Qb6 {[%clk 01:19:02]} {[%emt 00:01:36]} 19. Nb3 {[%clk 01:17:25]}
{[%emt 00:01:04]} Ng4 {[%clk 01:16:53]} {[%emt 00:02:36]} 20. Qd2 {[%clk
01:15:05]} {[%emt 00:02:53]} Qd6 {[%clk 01:15:43]} {[%emt 00:01:33]} 21. g3
{[%clk 01:13:44]} {[%emt 00:01:57]} Rab8 {[%clk 01:11:59]} {[%emt 00:04:14]} 22.
Be2 {[%clk 01:10:55]} {[%emt 00:03:19]} Qc6 {[%clk 01:08:07]} {[%emt 00:04:11]}
23. Bxg4 {[%clk 01:08:20]} {[%emt 00:03:16]} Bxg4 {[%clk 01:08:18]} {[%emt
00:00:19]} 24. f4 {[%clk 01:04:13]} {[%emt 00:04:38]} Rfc8 {[%clk 01:00:36]}
{[%emt 00:08:11]} 25. c3 {[%clk 01:02:23]} {[%emt 00:02:21]} a5 {[%clk
00:59:03]} {[%emt 00:02:02]} 26. Nd4 {[%clk 01:01:21]} {[%emt 00:01:33]} Qb6
{[%clk 00:57:08]} {[%emt 00:02:22]} 27. b3 {[%clk 00:59:41]} {[%emt 00:02:12]}
Qc5 {[%clk 00:53:39]} {[%emt 00:03:58]} 28. Rac1 {[%clk 00:56:08]} {[%emt
00:04:04]} Qb6 {[%clk 00:48:22]} {[%emt 00:05:47]} 29. Re3 {[%clk 00:52:05]}
{[%emt 00:04:33]} Rb7 {[%clk 00:44:56]} {[%emt 00:03:56]} 30. Rce1 {[%clk
00:49:10]} {[%emt 00:03:24]} Rbb8 {[%clk 00:41:55]} {[%emt 00:03:32]} 31. Re7
{[%clk 00:46:44]} {[%emt 00:02:57]} Be6 {[%clk 00:39:30]} {[%emt 00:02:43]} 32.
f5 {[%clk 00:37:33]} {[%emt 00:09:52]} Bxf5 {[%clk 00:35:34]} {[%emt 00:04:26]}
33. R7e5 {[%clk 00:36:47]} {[%emt 00:01:17]} Be4 {[%clk 00:32:01]} {[%emt
00:04:03]} 34. Qf4 {[%clk 00:23:31]} {[%emt 00:13:45]} Rxc3 {[%clk 00:29:47]}
{[%emt 00:02:44]} 35. Qd2 {[%clk 00:23:17]} {[%emt 00:00:44]} Rd3 {[%clk
00:29:25]} {[%emt 00:00:52]} 36. Qf2 {[%clk 00:16:15]} {[%emt 00:07:33]} Qxd4
{[%clk 00:28:43]} {[%emt 00:01:11]} 0-1